Cogmind - Beta 13 @@@ ROGUE MODE // 2024.03.14 @ 20:18:34 // Winter2019/RPGLIKE Player: H3-RMN Result: Destroyed by 38-5S8(R) with Subdweller Laser Performance ------------- Evolutions (0) 0 Regions Visited (3) 600 Robots Destroyed (51) 255 Value Destroyed (1441) 1441 Prototype IDs (10) 200 Alien Tech Used (0) 0 Bonus (16) 16 TOTAL SCORE: 2512 Bonus ------- High Alert Combat Kills 16 Cogmind --------- Core Integrity 0/900 Matter 267/300 Energy 179/180 System Corruption 3% Temperature Cool (6) Movement Walking (120) Location -10/Subcaves Parts ------- > --- POWER (1) -------- Meta Core > --- PROPULSION (2+1) - Flexi-carbon Leg Flexi-carbon Leg > --- UTILITY (4+1) ---- Improved Terrain Scanner Makeshift Light Armor Plating Scrap Shield > --- WEAPON (2+1) ----- Battle Rifle (fused) Grenade Launcher Ripper (+) > --- INVENTORY (4) ---- High-capacity Matter Pod (200) Battle Cannon Shrapnel Trap Shrapnel Trap Peak State ------------ > --- POWER ------------ Meta Core > --- PROPULSION ------- Flexi-carbon Leg Flexi-carbon Leg > --- UTILITY ---------- Improved Terrain Scanner Makeshift Light Armor Plating Scrap Shield > --- WEAPON ----------- Battle Cannon Grenade Launcher Ripper > --- INVENTORY -------- High-capacity Matter Pod Shrapnel Trap Shrapnel Trap [Rating: 41] Favorites ----------- Power Ion Engine Engine Ion Engine Power Core Meta Core Propulsion Flexi-carbon Leg Treads Light Treads Leg Flexi-carbon Leg Wheel Wheel Utility Improved Terrain Scanner Device Improved Terrain Scanner Protection Makeshift Light Armor Plating Weapon Light Cannon Energy Gun Medium Laser Ballistic Gun Battle Rifle Ballistic Cannon Light Cannon Launcher Grenade Launcher Slashing Weapon Ripper Build | -11 -10 -10 -10 ------- Run | Yrd Mat Min Sub Slots Evolved 5 | 3 2 . . Power . | . . . . Propulsion 1 | 1 . . . Utility 3 | 1 2 . . Weapon 1 | 1 . . . Parts Attached 28 | 6 7 6 9 Power 3 | 1 1 . 1 Engine 2 | 1 1 . . Core 1 | . . . 1 Reactor . | . . . . Propulsion 5 | 2 1 2 . Treads 1 | 1 . . . Leg 2 | . . 2 . Wheel 2 | 1 1 . . Hover . | . . . . Flight . | . . . . Utility 9 | 1 3 1 4 Device 4 | 1 2 1 . Storage . | . . . . Processor . | . . . . Hackware . | . . . . Protection 5 | . 1 . 4 Artifact . | . . . . Weapon 11 | 2 2 3 4 Energy Gun 2 | 2 . . . Energy Cannon . | . . . . Ballistic Gun 1 | . . . 1 Ballistic Cannon 4 | . 2 1 1 Launcher 2 | . . 2 . Special Weapon . | . . . . Impact Weapon . | . . . . Slashing Weapon 2 | . . . 2 Piercing Weapon . | . . . . Special Melee Weapon . | . . . . Unidentified Prototypes . | . . . . Parts Lost 3 | . . 1 2 Power . | . . . . Propulsion . | . . . . Utility 3 | . . 1 2 Weapon . | . . . . Highest Loss Streak 1 | . . 1 1 To Critical Strikes . | . . . . Average Slot Usage (%) 87 | . 99 92 79 Engine 7 | . 12 11 4 Core 2 | . . . 4 Treads 4 | . 12 5 . Leg 12 | . . 11 18 Wheel 4 | . 12 5 . Device 21 | . 29 33 12 Protection 10 | . 5 4 15 Ballistic Gun 1 | . . . 2 Ballistic Cannon 11 | . 24 15 4 Launcher 6 | . . 6 9 Slashing Weapon 3 | . . . 6 Naked Turns . | . . . . Heaviest Build 38 | 8 17 17 38 Greatest Support 40 | 20 10 40 40 Greatest Overweight (x) 1 | . 1 1 . Average Overweight (x) . | . . . . Largest Inventory Capacity 4 | 2 2 2 4 Average Capacity 2 | . 2 2 3 Most Carried 4 | 1 2 2 4 Average Carried 2 | . 1 2 3 Final Capacity 4 | 2 2 2 4 Final Carried 4 | 1 2 2 4 Class Distribution -------------------- 57% | Skirmisher 29% | Derelict-Mutant 12% | Mutant Dominant Class ---------------- Skirmisher | -10/Materials Skirmisher | -10/Mines Derelict-Mutant | -10/Subcaves Resources | -11 -10 -10 -10 ----------- Run | Yrd Mat Min Sub Matter Collected 1863 | 260 750 319 534 Remotely 613 | . 290 319 4 Salvage Created 1253 | 104 536 210 403 Parts 78 | 2 43 13 20 Haulers Intercepted 2 | . 2 . . Recyclers Shooed 2 | 1 1 . . Parts Field Recycled . | . . . . Retrieved Matter . | . . . . Parts Self-Destructed 10 | . . . 10 Prevented . | . . . . Kills | -11 -10 -10 -10 ------- Run | Yrd Mat Min Sub Combat Hostiles Destroyed 49 | . 20 16 13 Melee 2 | . . . 2 Guns 1 | . . . 1 Cannons 33 | . 20 7 6 AOE 13 | . . 9 4 Classes Destroyed 10 | 2 5 2 1 Tunneler 1 | 1 . . . Hauler 2 | . 2 . . Recycler 3 | 1 1 1 . Operator 1 | . 1 . . Watcher 2 | . 2 . . Swarmer 12 | . 6 6 . Grunt 18 | . 14 2 2 Demolisher 1 | . . 1 . Subdweller 11 | . . . 11 Assembled 7 | . . 7 . Best Kill Streak 14 | 2 6 14 2 Combat Bots Only 14 | . 4 14 2 Max Kills in Single Turn 3 | 1 2 3 1 Gunslinging . | . . . . Exploded 3 | . . 3 1 Melee 1 | . . . 1 Uniques/NPCs Destroyed . | . . . . Combat | -11 -10 -10 -10 -------- Run | Yrd Mat Min Sub Hostile Shots Fired 214 | . 86 44 84 Missed 60 | . 24 14 22 Damage Taken 2587 | . 609 615 1363 Core 1762 | . 474 487 801 Absorbed by Shields . | . . . . Redirected to Core 1381 | . 322 394 665 Core Remaining (%) 100 | 100 . . . Volleys Fired 203 | 6 72 43 82 Largest 2 | 2 2 2 1 Hottest 100 | 100 70 70 39 Shots Fired 275 | 12 122 56 85 Gun 29 | 12 . . 17 Cannon 227 | . 122 51 54 Launcher 19 | . . 5 14 Special . | . . . . Kinetic 244 | . 122 51 71 Thermal 12 | 12 . . . Explosive 19 | . . 5 14 Electromagnetic . | . . . . Robot Hit Streak 15 | 4 15 9 14 Robot Miss Streak 3 | 1 3 3 2 Penetration Max . | . . . . Secondary Targets . | . . . . Shots Hit Robots 166 | 9 69 27 61 Core Hits 69 | 2 27 18 22 Critical Kills . | . . . . Critical Parts Destroyed . | . . . . Critical Strikes 6 | 1 2 1 2 Burn 1 | 1 . . . Blast 5 | . 2 1 2 Melee Attacks 38 | . . . 38 Impact . | . . . . Slashing 38 | . . . 38 Piercing . | . . . . Sneak Attacks 1 | . . . 1 Combat Hostiles . | . . . . Follow-up Attacks . | . . . . Damage Inflicted 4080 | 115 1295 838 1832 Guns 312 | 115 . . 197 Cannons 2163 | . 1295 446 422 Explosions 912 | . . 392 520 Melee 693 | . . . 693 Ramming . | . . . . Kinetic 2360 | . 1295 446 619 Thermal 115 | 115 . . . Explosive 912 | . . 392 520 Electromagnetic . | . . . . Impact . | . . . . Slashing 693 | . . . 693 Piercing . | . . . . Highest Corruption 3 | . 3 3 3 Average Corruption 2 | . 2 3 3 Corruption Purged . | . . . . Corruption Blocked . | . . . . Effects 57 | . . 15 42 Message Errors 14 | . . 5 9 Matter Fused 10 | . . 5 5 Heat Flow Errors 7 | . . 1 6 Energy Discharges 3 | . . . 3 Parts Fused 1 | . . . 1 Data Loss (minor) 13 | . . 1 12 Data Loss (major) 1 | . . 1 . Misfires 4 | . . . 4 Alerts 3 | . . 2 1 Weapon Failures 1 | . . . 1 Overload Shots . | . . . . Overflow Damage 33 | . 7 26 . Projectiles 33 | . 7 26 . Explosions . | . . . . Melee . | . . . . Knockbacks 27 | . 19 4 4 Impact . | . . . . Kinetic 26 | . 18 4 4 Secondary 1 | . 1 . . Self-Inflicted Damage 101 | . . 96 5 Shots 4 | . . 3 1 Rammed . | . . . . Targets Rammed . | . . . . Kicked . | . . . . Crushed . | . . . . Highest Temperature 266 | 214 168 221 266 Average Temperature 69 | 109 62 53 108 Received Heat Transfer 500 | . 135 44 321 Siege Activations . | . . . . Robots Corrupted . | . . . . Combat Hostiles . | . . . . Parts Fried . | . . . . Impact Corruptions . | . . . . Robots Melted 1 | 1 . . . Combat Hostiles . | . . . . Parts Melted 1 | 1 . . . Heat Transferred 407 | 407 . . . Parts Sabotaged . | . . . . Parts Stolen . | . . . . Parts Stripped . | . . . . Power Chain Reactions . | . . . . Alert | -11 -10 -10 -10 ------- Run | Yrd Mat Min Sub Peak Influence 503 | 10 503 218 . Initial 137 | . 6 137 . Average 193 | 5 259 157 . Maximum Alert Level 2 | . 2 1 . Low Security (%) 45 | 100 28 53 . Level 1 43 | . 45 46 . Level 2 11 | . 26 . . Level 3 . | . . . . Level 4 . | . . . . Level 5 . | . . . . High Security . | . . . . Max Security . | . . . . Squads Dispatched 6 | . 6 . . Investigation 6 | . 6 . . Extermination . | . . . . Reinforcement . | . . . . Assault . | . . . . Garrison . | . . . . Intercept . | . . . . Searches Triggered . | . . . . Construction Impeded . | . . . . Haulers Reinforced . | . . . . Active Scanning Responses . | . . . . Cargo Convoy Interrupts . | . . . . Stealth | -11 -10 -10 -10 --------- Run | Yrd Mat Min Sub Distress Signals 2 | . 2 . . Communications Jammed . | . . . . Distress Signals . | . . . . Times Spotted 75 | . 26 30 19 Peak Tracking Total 9 | . 4 9 3 Tactical Retreats 6 | . . 3 3 Traps | -11 -10 -10 -10 ------- Run | Yrd Mat Min Sub Traps Triggered 6 | . 4 . 2 Indirectly . | . . . . Trap Hack Attempts . | . . . . Triggered . | . . . . Disarmed . | . . . . Reprogrammed . | . . . . Reused . | . . . . Traps Extracted . | . . . . Installed . | . . . . Triggered . | . . . . Most Traps Carried 2 | . . . 2 Machines | -11 -10 -10 -10 ---------- Run | Yrd Mat Min Sub Machines Disabled 11 | . 7 3 1 Max in Single Turn 2 | . 1 2 1 Machines Repaired . | . . . . Machines Dismantled . | . . . . Machines Sabotaged . | . . . . Overloaded Fab Kills . | . . . . Hacking | -11 -10 -10 -10 --------- Run | Yrd Mat Min Sub Machines Accessed 10 | . 8 . 2 Terminals 6 | . 6 . . Fabricators . | . . . . Repair Stations . | . . . . Recycling Units 2 | . 2 . . Scanalyzers . | . . . . Garrison Access . | . . . . Total Hacks 30 | . 26 . 4 Successful 11 | . 7 . 4 Failed 19 | . 19 . . Catastrophic 3 | . 3 . . Database Lockouts . | . . . . Manual 19 | . 19 . . Terminals 18 | . 18 . . Fabricators . | . . . . Repair Stations . | . . . . Recycling Units 8 | . 8 . . Scanalyzers . | . . . . Garrison Access . | . . . . Terminal Hacks 7 | . 3 . 4 Record 3 | . . . 3 Robot Schematic 1 | . 1 . . Robot Analysis 2 | . 2 . . Derelict Proto ID Bank 1 | . . . 1 Fabricator Hacks . | . . . . Repair Station Hacks . | . . . . Recycling Unit Hacks 3 | . 3 . . Report Inventory 2 | . 2 . . Retrieve Components 1 | . 1 . . Scanalyzer . | . . . . Garrison Access Hacks . | . . . . Unauthorized Hacks 1 | . 1 . . Terminals . | . . . . Fabricators . | . . . . Repair Stations . | . . . . Recycling Units 1 | . 1 . . Tunnel 1 | . 1 . . Scanalyzers . | . . . . Garrison Access . | . . . . Data Cores Recovered . | . . . . Used . | . . . . Hacking Detections 7 | . 7 . . Full Trace Events 5 | . 5 . . Feedback Events . | . . . . Feedback Blocked . | . . . . Robot Schematics Acquired 1 | . 1 . . Robots Built . | . . . . Authchips . | . . . . Time . | . . . . Total Robot Build Rating . | . . . . Part Schematics Acquired . | . . . . Parts Built . | . . . . Authchips . | . . . . Time . | . . . . Total Part Build Rating . | . . . . Parts Repaired . | . . . . Time . | . . . . Parts Recycled . | . . . . Recycled Matter . | . . . . Retrieved Matter . | . . . . Retrieved Components 3 | . 3 . . Parts Scanalyzed . | . . . . Part Schematics Acquired . | . . . . Parts Damaged . | . . . . Bothacking | -11 -10 -10 -10 ------------ Run | Yrd Mat Min Sub Used RIF Installer . | . . . . Robots Hacked . | . . . . Non-combat . | . . . . Combat . | . . . . Robot Hacks Applied . | . . . . Relay Couplers Released . | . . . . Fabnet Peak Effective % . | . . . . Robots Rewired . | . . . . Allies Hacked . | . . . . Hacks Repelled . | . . . . Allies | -11 -10 -10 -10 -------- Run | Yrd Mat Min Sub Total Allies 1 | . . 1 . Largest Group 1 | . . 1 1 Highest-Rated Group 31 | . . 31 31 Highest-Rated Ally 31 | . . 31 31 Total Orders . | . . . . Ally Attacks 11 | . . 3 8 Total Damage 189 | . . 43 146 Kills 2 | . . 2 . Allies Corrupted . | . . . . Allies Melted . | . . . . Intel | -11 -10 -10 -10 ------- Run | Yrd Mat Min Sub Robot Analysis Total 2 | . 2 . . Derelict Logs Recovered 3 | . . 1 2 Drone Launches . | . . . . Drone Recoveries . | . . . . Exploration | -11 -10 -10 -10 ------------- Run | Yrd Mat Min Sub Turns Passed 3888 | 83 802 1019 1984 Spaces Moved 2565 | 68 502 618 1377 Core 4 | 4 . . . Treads 2 | 2 . . . Legs 1606 | . . 229 1377 Wheels 953 | 62 502 389 . Hover . | . . . . Flight . | . . . . Fastest Speed 50 | 50 80 95 120 Average Speed 110 | 80 94 104 120 Slowest Speed 160 | 160 95 120 120 Overloaded Moves . | . . . . Propulsion Burnouts . | . . . . Robots Hopped . | . . . . Cave-ins Triggered . | . . . . Exploration Rate (%) 71 | 5 96 98 85 Regions Visited 3 Branch Regions 2 Pre-discovered Areas 3 | . 1 1 1 Known Exits Taken . | . . . . Unknown Exits Taken 3 | 1 1 1 . Scrap Searched 8 | . . 1 7 Spaces Dug . | . . . . Terrain Destroyed 105 | . . 49 56 Melee . | . . . . Projectile . | . . . . AOE 105 | . . 49 56 Terrain Rammed . | . . . . Walls Destroyed . | . . . . Machines Disabled . | . . . . Actions | -11 -10 -10 -10 --------- Run | Yrd Mat Min Sub Total 3292 | 80 706 935 1571 Wait 389 | . 97 260 32 Move 2562 | 67 501 617 1377 Hop . | . . . . Pick Up 9 | 1 4 . 4 Fast Attach 21 | 6 4 3 8 Attach 2 | . 1 . 1 Detach . | . . . . Swap 5 | . 2 3 . Drop 16 | . 6 3 7 Fire 203 | 6 72 43 82 Melee 38 | . . . 38 Ram . | . . . . Kick . | . . . . Crush . | . . . . Escape Stasis . | . . . . Rewire . | . . . . Trap . | . . . . Miscellaneous 47 | . 19 6 22 Route ------- -11/Scrapyard -10/Materials (discovered 6 exits: [*Mat x3] / [*Min x2] / Sub) -10/Mines (discovered 3 exits: [*Mat x2] / *Sub) -10/Subcaves (discovered 3 exits: [*Mat x2] / [Rec]) History --------- Turn | Location | Event 8 | -11/Scrapyard | Upgraded with Propulsion slot (x1) 8 | -11/Scrapyard | Upgraded with Utility slot (x1) 8 | -11/Scrapyard | Upgraded with Weapon slot (x1) 18 | -11/Scrapyard | Discovered new exit (range 16) 84 | -11/Scrapyard | Entered Materials 86 | -10/Materials | Discovered new exit (range 11) 158 | -10/Materials | Discovered new exit (range 13) 341 | -10/Materials | Discovered new exit (range 17) 398 | -10/Materials | Build established: Skirmisher 456 | -10/Materials | Discovered new exit (range 17) 484 | -10/Materials | Reached level 2 512 | -10/Materials | Upgraded with Utility slot (x2) 619 | -10/Materials | Discovered new exit (range 12) 680 | -10/Materials | Reached level 3 782 | -10/Materials | Discovered new exit (range 11) 886 | -10/Materials | Entered Mines 1054 | -10/Mines | Discovered new exit (range 12) 1292 | -10/Mines | Assembled infested the area 1297 | -10/Mines | Assisted by a Guerilla fighting off Assembled 1299 | -10/Mines | Reached level 4 1320 | -10/Mines | Core integrity fell below 50% 1346 | -10/Mines | Core integrity fell below 20% 1382 | -10/Mines | Destroyed 14 combat bots 1421 | -10/Mines | Discovered new exit (range 4) 1423 | -10/Mines | Escorted by a lone wolf Derelict 1887 | -10/Mines | Discovered new exit (range 14) 1905 | -10/Mines | Entered Subcaves 1905 | -10/Subcaves | Accompanied by 1 ally 1907 | -10/Subcaves | Reached level 5 1940 | -10/Subcaves | Discovered new exit (range 8) 2058 | -10/Subcaves | Shifting Twisted Machinery released Mak. Light Armor Plating 2138 | -10/Subcaves | Learned location of 1 exit from Materials 2413 | -10/Subcaves | Discovered new exit (range 13) 2484 | -10/Subcaves | Shifting Twisted Machinery released Battle Cannon 2487 | -10/Subcaves | Shifting Twisted Machinery released Sub. Beam Cannon 2618 | -10/Subcaves | Build established: Mutant 2685 | -10/Subcaves | Learned location of Zion (-7) 2714 | -10/Subcaves | Visited 4L-MR0's lab 2726 | -10/Subcaves | Found Meta Core 2727 | -10/Subcaves | Attached Meta Core, gained temporary slots: Propulsion, Utility, Weapon 2877 | -10/Subcaves | Visited Clippyterm 2939 | -10/Subcaves | Discovered new exit (range 3) 3018 | -10/Subcaves | Build established: Derelict-Mutant 3200 | -10/Subcaves | Shifting Twisted Machinery released Battle Cannon 3210 | -10/Subcaves | Shifting Twisted Machinery released Battle Rifle 3889 | -10/Subcaves | Destroyed by 38-5S8(R) with Subdweller Laser Last Messages --------------- emitted. 03407_ System corrupted: FCS attempts to trigger Battle Rifle. 03407_ System corrupted: Battle Rifle misfires. 03450_ Acquired 3 matter. 03457_ ECZNHH/6L44ECA/UDV>=IJN=1NP> |JC&LZ 03480_ System corrupted: Heat flow error (+146). 03518_ System corrupted: Heat flow error (+297). 03535_ System corrupted: FCS attempts to trigger Battle Rifle. 03535_ System corrupted: Battle Rifle misfires. 03587_ JL-AV2(u) tweaks Twisted Machinery. 03608_ System corrupted: Matter fused (-8). 03623_ PXSGKHBCH76BKIVMXY2% 03657_ System corrupted: Battle Rifle fused. 03722_ LNT<%AGYV2D5IP33I40IIBTAUVGXDG4JVE1|5 03753_ System corrupted: Matter fused (-10). 03788_ System corrupted: Component data lost. 03875_ System corrupted: Component data lost. Map ----- +----------------------------------------------------+ | #?????#?#?????##???#????#??????#?####?######?# ##" | | ##?#????###????#?#??????#?????#?#???########?# #" | | ####??###?????#??#????#????????#?#??########## #"% | | ?#?##?#?#??????###?##??##?#?#??##?###?##?###?# ##" | | ##??#?#?#????#??????????????##?#?#??########## ## | | ##???##?#???###?#????????####??#??#?#?######## | | #######?#?### ####?##?????#?##???############# | | #########?#?# ####?####?####?#######?####### | | ##?####?##### #### ####?#?#### #######?# | | #####?##?# " ## ####### ######### | | # ######## " " ######### | | < ########## ### " ## ###### | | #######?####?# #### ##### | | ""### ?"""##?####" "### ## ## | | ""#?# ?""""### ## "####""## ### | | "## """""" ### ## ### #### | | """?"""""# ##"" #### # ## ###### | | "?"? "?"### "##"" ### #### ###### | | # """ ##### "##"""" #### ###### | | ## ?? ???#### "##" """ ####### # ### | | ###? ######=####&%% """ ######## ## | | ##### ? ###### * %!% ""######### ## ## | | ##### #?####""!! """ "######## ## ###### ### | | ""### ###?####### ###% " ### # ###?### ### | | "" ###?#######?######### R """"" ###### #? | | #### ####### ###@"""""""" ##?#?### ## | | ##### ## #" ####??### | | ### ######### | | ### # # ###### ####??##?## | | ## ##### ############### ##########?### | | # ########### ## ######?###?########?######??#? | | ###?#?###??############?##################?####?## | | #?##?#####################???#######?###???#?#??#? | | ??#??????#???###?##?##??###?#?###?#######???##??#? | | #???##?##?#??###?####?####???##?#?####?#????#?#??? | | ##??????#?##?##??########??###########?????##??#?? | | ???##??##?##?#?#########?############?#?#?##?????? | | #????##?##?###?#?#######?#######??#????##????????? | | ?#?#??##?#??????#?#?################????????#????? | | #????????##???##??#######?##?????????????????????# | | ?#????#??????????####?#??#?#??#??????????????????? | | ???#?????????????#??????###??#???????????????????? | | ????##???????#???????????????????????????????????? | | ?#???????????????????????????????????????????????? | | ?????????????????????????????????????????????????? | | ?????????????????????????????????????????????????? | | | | | | | | | +----------------------------------------------------+ Best States ------------- Heat Dissipation 25 Energy Generation 17 Energy Capacity 250 Matter Stores 300 Matter Capacity 300 Sight Range 17 Robot Scan Range 14 Terrain Scan Range 16 Terrain Scan Density 110 Armor Coverage 900 Evasion (%) 55 Recoil Reduction 1 Defensive Hacking 5 Item Schematics ----------------- None Robot Schematics ------------------ M-13 Machinist | -10/Materials | Hacked Fabricated ------------ Nothing Alien Tech Used ----------------- None Achievements -------------- None Challenges ------------ None RPGLIKE | -11 -10 -10 -10 --------- Run | Yrd Mat Min Sub Levels Raised 4 | . 2 1 1 XP Earned 9221 | 3000 3273 1775 1173 XP Spent 6550 | 2600 1900 105 1945 Upgrades 18 | 8 2 3 5 Propulsion Slot 1 | 1 . . . Utility Slot 3 | 1 2 . . Weapon Slot 1 | 1 . . . Core Integrity 6 | . . 3 3 Inventory Capacity 4 | 2 . . 2 Sight Range 1 | 1 . . . Terrain Scan Density 1 | 1 . . . Hack Defense % 1 | 1 . . . Protomatter Created 286 | . 188 15 83 Integrity Restored 887 | . 386 105 396 Core 860 | . 359 105 396 Parts 27 | . 27 . . Protomatter Decayed 110 | . 30 26 54 Game ------ Seed HoverMetafiberAutocannon Manual? 0 Play Time 00:37:28 Cumulative 600.0 hours Start 2024.03.14 @ 07:09:23 End 2024.03.14 @ 20:18:34 Sessions 3 Manual Loads 0 Difficulty Rogue Special Mode Winter2019/RPGLIKE Game No. 230 Rogue 208 Adventurer 3 Explorer 19 Win Type - Total 13 Types 8/2/1/1/0/1/0/0/0 Lore% 88 Gallery% 95 Achievement% 82 Wizard Run 0 Options --------- Layout 2 ASCII 0 Keyboard 0 Movement Mouse Keybinds 0 Fullscreen 2 Font 24/Smallcaps Map View 50x44 Zoom Use 0% Tactical HUD 1 Map Filters NONE Filters NONE Steam X RUN: aee559b3-ed50-4f6c-9710-319b79880554